[Event "Early-Titled-Tuesday-Blitz-September-26-2023"]
[Site "Chess.com"]
[Date "2023.09.26"]
[Round "8"]
[White "Agibileg"]
[Black "AradNazari"]
[Result "1/2-1/2"]
[WhiteElo "2671"]
[BlackElo "2796"]
[TimeControl "180+1"]
[EndTime "9:30:17 PDT"]
[Termination "Game drawn by repetition"]

1. d4 {[%clk 0:03:00.2]} 1... Nf6 {[%clk 0:02:58.4]} 2. c4 {[%clk 0:02:59.8]}
2... g6 {[%clk 0:02:56.4]} 3. Nc3 {[%clk 0:03:00]} 3... d5 {[%clk 0:02:56.9]} 4.
cxd5 {[%clk 0:03:00.2]} 4... Nxd5 {[%clk 0:02:57.8]} 5. e4 {[%clk 0:03:00.8]}
5... Nxc3 {[%clk 0:02:58.5]} 6. bxc3 {[%clk 0:03:01.7]} 6... Bg7 {[%clk
0:02:59.2]} 7. Nf3 {[%clk 0:03:02.2]} 7... O-O {[%clk 0:02:59.7]} 8. Rb1 {[%clk
0:02:57.5]} 8... c5 {[%clk 0:02:58.7]} 9. Be2 {[%clk 0:02:57.7]} 9... Bg4 {[%clk
0:02:57.3]} 10. d5 {[%clk 0:02:39.9]} 10... Bxc3+ {[%clk 0:02:54.3]} 11. Bd2
{[%clk 0:02:40.2]} 11... Bxd2+ {[%clk 0:02:54]} 12. Qxd2 {[%clk 0:02:41.1]}
12... b6 {[%clk 0:02:48]} 13. h4 {[%clk 0:02:41.2]} 13... h5 {[%clk 0:02:44.2]}
14. Qh6 {[%clk 0:02:37.6]} 14... Bxf3 {[%clk 0:02:26.5]} 15. gxf3 {[%clk
0:02:38.5]} 15... Qd6 {[%clk 0:02:14.4]} 16. f4 {[%clk 0:02:32.7]} 16... Qf6
{[%clk 0:02:05]} 17. Bxh5 {[%clk 0:02:11.1]} 17... Qc3+ {[%clk 0:02:05.2]} 18.
Kf1 {[%clk 0:02:11.3]} 18... Qd3+ {[%clk 0:02:01.5]} 19. Kg2 {[%clk 0:02:11.5]}
19... Qd4 {[%clk 0:01:07.3]} 20. Rbg1 {[%clk 0:02:05.9]} 20... Qg7 {[%clk
0:01:06.6]} 21. Qxg7+ {[%clk 0:02:05.3]} 21... Kxg7 {[%clk 0:01:07.5]} 22. Bf3
{[%clk 0:02:05.8]} 22... Nd7 {[%clk 0:01:03]} 23. h5 {[%clk 0:02:06]} 23... Rh8
{[%clk 0:01:02.6]} 24. Kf1 {[%clk 0:02:00.8]} 24... c4 {[%clk 0:00:59]} 25. e5
{[%clk 0:01:41.9]} 25... Raf8 {[%clk 0:00:30]} 26. Ke2 {[%clk 0:01:34]} 26...
Rh6 {[%clk 0:00:25.5]} 27. hxg6 {[%clk 0:01:28.1]} 27... fxg6 {[%clk 0:00:22.1]}
28. Rxh6 {[%clk 0:01:21.8]} 28... Kxh6 {[%clk 0:00:23]} 29. Ke3 {[%clk
0:01:21.1]} 29... Nc5 {[%clk 0:00:23.4]} 30. Bd1 {[%clk 0:01:13.4]} 30... Nd3
{[%clk 0:00:23.6]} 31. Rg4 {[%clk 0:01:10.4]} 31... b5 {[%clk 0:00:23.3]} 32.
Bc2 {[%clk 0:01:10.4]} 32... a5 {[%clk 0:00:19.6]} 33. Bxd3 {[%clk 0:01:08.3]}
33... cxd3 {[%clk 0:00:20.5]} 34. Kxd3 {[%clk 0:01:09.2]} 34... b4 {[%clk
0:00:20.5]} 35. Rh4+ {[%clk 0:01:01]} 35... Kg7 {[%clk 0:00:20.3]} 36. Kc4
{[%clk 0:00:59]} 36... Rc8+ {[%clk 0:00:18.7]} 37. Kb5 {[%clk 0:00:52.3]} 37...
Rc2 {[%clk 0:00:17.8]} 38. Kxa5 {[%clk 0:00:52.2]} 38... Rxa2+ {[%clk
0:00:17.5]} 39. Kxb4 {[%clk 0:00:52.4]} 39... Rxf2 {[%clk 0:00:18.3]} 40. Kc5
{[%clk 0:00:47.9]} 40... Rc2+ {[%clk 0:00:18.3]} 41. Kd4 {[%clk 0:00:47.4]}
41... Ra2 {[%clk 0:00:18.6]} 42. Rg4 {[%clk 0:00:45.6]} 42... Kf7 {[%clk
0:00:18.4]} 43. Rg1 {[%clk 0:00:39.2]} 43... Ra4+ {[%clk 0:00:18.8]} 44. Ke3
{[%clk 0:00:39.3]} 44... Ra5 {[%clk 0:00:16.8]} 45. Rd1 {[%clk 0:00:39]} 45...
Ra3+ {[%clk 0:00:17]} 46. Ke4 {[%clk 0:00:39.2]} 46... Ra4+ {[%clk 0:00:17.2]}
47. Kf3 {[%clk 0:00:39.5]} 47... Ra2 {[%clk 0:00:14.5]} 48. d6 {[%clk
0:00:31.1]} 48... exd6 {[%clk 0:00:15]} 49. exd6 {[%clk 0:00:31.4]} 49... Ke8
{[%clk 0:00:14.2]} 50. d7+ {[%clk 0:00:26.7]} 50... Kd8 {[%clk 0:00:14.5]} 51.
Rd6 {[%clk 0:00:23.9]} 51... Rb2 {[%clk 0:00:12.2]} 52. Ke4 {[%clk 0:00:19.8]}
52... Re2+ {[%clk 0:00:11.7]} 53. Kf3 {[%clk 0:00:19.1]} 53... Rb2 {[%clk
0:00:11.4]} 54. Kg3 {[%clk 0:00:17.2]} 54... Ra2 {[%clk 0:00:10.1]} 55. Rd3
{[%clk 0:00:14.2]} 55... Rb2 {[%clk 0:00:08.4]} 56. Kf3 {[%clk 0:00:12.8]} 56...
Ra2 {[%clk 0:00:08.4]} 57. Kg4 {[%clk 0:00:04.8]} 57... Rg2+ {[%clk 0:00:08.6]}
58. Kf3 {[%clk 0:00:04.3]} 58... Ra2 {[%clk 0:00:08.4]} 59. Rd6 {[%clk 0:00:05]}
59... Rb2 {[%clk 0:00:07.3]} 1/2-1/2

[Event "Early-Titled-Tuesday-Blitz-September-26-2023"]
[Site "Chess.com"]
[Date "2023.09.26"]
[Round "8"]
[White "profedechess93"]
[Black "Flaccidmoves"]
[Result "1/2-1/2"]
[WhiteElo "2654"]
[BlackElo "2470"]
[TimeControl "180+1"]
[EndTime "9:30:17 PDT"]
[Termination "Game drawn by repetition"]

1. e4 {[%clk 0:02:59.1]} 1... e5 {[%clk 0:02:58.5]} 2. Nf3 {[%clk 0:02:58.2]}
2... Nc6 {[%clk 0:02:58.9]} 3. Bc4 {[%clk 0:02:57.3]} 3... Nf6 {[%clk
0:02:58.6]} 4. d3 {[%clk 0:02:57.6]} 4... Bc5 {[%clk 0:02:58.1]} 5. c3 {[%clk
0:02:58.1]} 5... O-O {[%clk 0:02:49.7]} 6. Bb3 {[%clk 0:02:58]} 6... d5 {[%clk
0:02:43.7]} 7. Qe2 {[%clk 0:02:57.9]} 7... Bg4 {[%clk 0:02:27]} 8. Nbd2 {[%clk
0:02:56.7]} 8... a5 {[%clk 0:02:22.2]} 9. a4 {[%clk 0:02:55.8]} 9... Re8 {[%clk
0:02:18.7]} 10. h3 {[%clk 0:02:52.4]} 10... Bh5 {[%clk 0:02:17.6]} 11. Nf1
{[%clk 0:02:48.1]} 11... Bg6 {[%clk 0:01:53.4]} 12. Ng3 {[%clk 0:02:43.9]} 12...
Nb8 {[%clk 0:01:37.2]} 13. Bg5 {[%clk 0:02:33.1]} 13... c6 {[%clk 0:01:18.5]}
14. Nh2 {[%clk 0:02:25.1]} 14... Qb6 {[%clk 0:01:11.9]} 15. Ba2 {[%clk
0:02:19.2]} 15... Nbd7 {[%clk 0:01:09.7]} 16. Ng4 {[%clk 0:02:12.3]} 16... Nxg4
{[%clk 0:01:06.4]} 17. hxg4 {[%clk 0:02:12.2]} 17... Nf8 {[%clk 0:00:51.3]} 18.
exd5 {[%clk 0:01:32.8]} 18... cxd5 {[%clk 0:00:52.2]} 19. Bxd5 {[%clk
0:01:32.5]} 19... Ne6 {[%clk 0:00:52.4]} 20. Bxe6 {[%clk 0:01:31.2]} 20... Rxe6
{[%clk 0:00:52.4]} 21. Ne4 {[%clk 0:01:29.7]} 21... Bf8 {[%clk 0:00:33.5]} 22.
O-O {[%clk 0:01:23.9]} 22... Rc8 {[%clk 0:00:29.1]} 23. Be3 {[%clk 0:01:23]}
23... Qc6 {[%clk 0:00:28.1]} 24. f3 {[%clk 0:01:21.1]} 24... Rd8 {[%clk
0:00:27]} 25. Rfd1 {[%clk 0:01:11.8]} 25... Re7 {[%clk 0:00:24.8]} 26. Qf2
{[%clk 0:01:07.3]} 26... Red7 {[%clk 0:00:20.1]} 27. Bb6 {[%clk 0:01:06.9]}
27... Rc8 {[%clk 0:00:20.7]} 28. Bxa5 {[%clk 0:01:06.4]} 28... f6 {[%clk
0:00:15.5]} 29. Bb4 {[%clk 0:00:58.5]} 29... Bxb4 {[%clk 0:00:13.2]} 30. cxb4
{[%clk 0:00:59.4]} 30... Bf7 {[%clk 0:00:13.4]} 31. b5 {[%clk 0:00:55.6]} 31...
Qd5 {[%clk 0:00:12.2]} 32. Nc3 {[%clk 0:00:46.1]} 32... Qd4 {[%clk 0:00:11.8]}
33. Qxd4 {[%clk 0:00:45.6]} 33... Rxd4 {[%clk 0:00:12.7]} 34. Kf2 {[%clk
0:00:42.4]} 34... Rb4 {[%clk 0:00:12.6]} 35. Rd2 {[%clk 0:00:41.7]} 35... Rb3
{[%clk 0:00:11.1]} 36. a5 {[%clk 0:00:36.5]} 36... Ra8 {[%clk 0:00:10.6]} 37.
Ke2 {[%clk 0:00:26.1]} 37... Be8 {[%clk 0:00:10.3]} 38. b6 {[%clk 0:00:24]}
38... Rxb6 {[%clk 0:00:10.2]} 39. axb6 {[%clk 0:00:23]} 39... Rxa1 {[%clk
0:00:11.1]} 40. d4 {[%clk 0:00:22]} 40... exd4 {[%clk 0:00:09.5]} 41. Rxd4
{[%clk 0:00:22.9]} 41... Bc6 {[%clk 0:00:09.9]} 42. Rb4 {[%clk 0:00:15.5]} 42...
Rg1 {[%clk 0:00:09.7]} 43. Kf2 {[%clk 0:00:14.4]} 43... Rc1 {[%clk 0:00:10.2]}
44. Kg3 {[%clk 0:00:12.9]} 44... Rc2 {[%clk 0:00:10.4]} 45. Ne4 {[%clk
0:00:12.2]} 45... Bxe4 {[%clk 0:00:09.7]} 46. fxe4 {[%clk 0:00:13.1]} 46... Kf7
{[%clk 0:00:09.5]} 47. Rd4 {[%clk 0:00:10.9]} 47... Ke6 {[%clk 0:00:09.5]} 48.
Rb4 {[%clk 0:00:10.4]} 48... Ke5 {[%clk 0:00:09]} 49. Kf3 {[%clk 0:00:10]} 49...
h6 {[%clk 0:00:08.3]} 50. Rb5+ {[%clk 0:00:10.4]} 50... Ke6 {[%clk 0:00:08.8]}
51. g3 {[%clk 0:00:10.6]} 51... g6 {[%clk 0:00:08.5]} 52. Kf4 {[%clk 0:00:09.9]}
52... Rd2 {[%clk 0:00:08.3]} 53. Ke3 {[%clk 0:00:09.6]} 53... Rc2 {[%clk
0:00:08.1]} 54. Kf3 {[%clk 0:00:09.8]} 54... Rd2 {[%clk 0:00:08.4]} 55. Rb4
{[%clk 0:00:09]} 55... Rd3+ {[%clk 0:00:08.7]} 56. Kf2 {[%clk 0:00:08.4]} 56...
Rd2+ {[%clk 0:00:09.3]} 57. Ke3 {[%clk 0:00:08.7]} 57... Rc2 {[%clk 0:00:09.6]}
58. Kf3 {[%clk 0:00:08.7]} 58... Rd2 {[%clk 0:00:09.8]} 59. Rb3 {[%clk
0:00:08.7]} 59... Rc2 {[%clk 0:00:10]} 60. Ke3 {[%clk 0:00:08]} 60... Rg2 {[%clk
0:00:09.6]} 61. Kf3 {[%clk 0:00:08.5]} 61... Rc2 {[%clk 0:00:09.8]} 62. Ke3
{[%clk 0:00:07.8]} 62... Rg2 {[%clk 0:00:09.9]} 63. Kf4 {[%clk 0:00:07.9]} 63...
Rc2 {[%clk 0:00:10.3]} 64. Kf3 {[%clk 0:00:07.5]} 64... Rd2 {[%clk 0:00:10]} 65.
Ke3 {[%clk 0:00:07]} 65... Rc2 {[%clk 0:00:10.3]} 66. Kf3 {[%clk 0:00:06.3]}
66... Rd2 {[%clk 0:00:10.7]} 67. Ke3 {[%clk 0:00:06.5]} 67... Rc2 {[%clk
0:00:11]} 68. Kf3 {[%clk 0:00:06.6]} 1/2-1/2

[Event "Early-Titled-Tuesday-Blitz-September-26-2023"]
[Site "Chess.com"]
[Date "2023.09.26"]
[Round "8"]
[White "Mikhail_Golubev"]
[Black "kroppar"]
[Result "0-1"]
[WhiteElo "2575"]
[BlackElo "2419"]
[TimeControl "180+1"]
[EndTime "9:30:17 PDT"]
[Termination "kroppar won on time"]

1. e4 {[%clk 0:03:00.9]} 1... d5 {[%clk 0:02:59.3]} 2. exd5 {[%clk 0:02:59.4]}
2... Qxd5 {[%clk 0:03:00.2]} 3. Nf3 {[%clk 0:02:59.5]} 3... Nf6 {[%clk
0:02:59.9]} 4. d4 {[%clk 0:02:58.2]} 4... c6 {[%clk 0:02:59.8]} 5. Be2 {[%clk
0:02:56.2]} 5... Bg4 {[%clk 0:02:58.8]} 6. O-O {[%clk 0:02:54.4]} 6... Nbd7
{[%clk 0:02:58]} 7. c4 {[%clk 0:02:54.2]} 7... Qa5 {[%clk 0:02:56.7]} 8. Nc3
{[%clk 0:02:52.9]} 8... e6 {[%clk 0:02:54.7]} 9. Bf4 {[%clk 0:02:45.9]} 9... Bb4
{[%clk 0:02:52.9]} 10. Rc1 {[%clk 0:02:35.4]} 10... O-O {[%clk 0:02:52.4]} 11.
a3 {[%clk 0:02:34.7]} 11... Be7 {[%clk 0:02:47.9]} 12. h3 {[%clk 0:02:21.5]}
12... Bh5 {[%clk 0:02:41.4]} 13. Ne5 {[%clk 0:02:14.4]} 13... Bxe2 {[%clk
0:02:31.3]} 14. Qxe2 {[%clk 0:02:15.3]} 14... Rfd8 {[%clk 0:02:23.8]} 15. Nf3
{[%clk 0:02:00]} 15... Bf8 {[%clk 0:02:12.7]} 16. Rfe1 {[%clk 0:01:57.9]} 16...
c5 {[%clk 0:01:51.1]} 17. dxc5 {[%clk 0:01:45.8]} 17... Qxc5 {[%clk 0:01:44.1]}
18. b4 {[%clk 0:01:46]} 18... Qf5 {[%clk 0:01:42]} 19. Bc7 {[%clk 0:01:40.9]}
19... Re8 {[%clk 0:01:35.8]} 20. Red1 {[%clk 0:01:27.5]} 20... Rac8 {[%clk
0:01:34.4]} 21. Bh2 {[%clk 0:01:25.9]} 21... Nb6 {[%clk 0:01:33.4]} 22. Nd4
{[%clk 0:01:00.5]} 22... Qh5 {[%clk 0:01:30.3]} 23. Qxh5 {[%clk 0:00:59.4]}
23... Nxh5 {[%clk 0:01:31.2]} 24. c5 {[%clk 0:00:59.4]} 24... Nc4 {[%clk
0:00:59.3]} 25. Ncb5 {[%clk 0:00:49.2]} 25... Nb2 {[%clk 0:00:53.5]} 26. Rd2
{[%clk 0:00:46.2]} 26... Red8 {[%clk 0:00:46.5]} 27. Rxb2 {[%clk 0:00:43.4]}
27... a6 {[%clk 0:00:46.9]} 28. Na7 {[%clk 0:00:19.9]} 28... Ra8 {[%clk
0:00:44.1]} 29. c6 {[%clk 0:00:16.9]} 29... Rxa7 {[%clk 0:00:37]} 30. c7 {[%clk
0:00:16.8]} 30... Rc8 {[%clk 0:00:37]} 31. b5 {[%clk 0:00:16.7]} 31... Bxa3
{[%clk 0:00:16.7]} 32. bxa6 {[%clk 0:00:08.5]} 32... Bxb2 {[%clk 0:00:14.6]} 33.
Rb1 {[%clk 0:00:07.4]} 33... Rxa6 {[%clk 0:00:11.7]} 34. g4 {[%clk 0:00:07.6]}
34... Ra1 {[%clk 0:00:04.5]} 35. Rxa1 {[%clk 0:00:06.8]} 35... Bxa1 {[%clk
0:00:05.4]} 36. Nb5 {[%clk 0:00:07]} 36... Nf6 {[%clk 0:00:02.5]} 37. Na7 {[%clk
0:00:07.1]} 37... Rxc7 {[%clk 0:00:02.2]} 38. Bxc7 {[%clk 0:00:07.7]} 38... Kf8
{[%clk 0:00:02.8]} 39. Nb5 {[%clk 0:00:06.8]} 39... Ke8 {[%clk 0:00:03.2]} 40.
Bf4 {[%clk 0:00:05.3]} 40... Nd5 {[%clk 0:00:03.3]} 41. Nd6+ {[%clk 0:00:04.8]}
41... Kd7 {[%clk 0:00:03.1]} 42. Bg3 {[%clk 0:00:05.4]} 42... f6 {[%clk
0:00:03.1]} 43. Nxb7 {[%clk 0:00:05.2]} 43... e5 {[%clk 0:00:03.3]} 44. Nc5+
{[%clk 0:00:05.1]} 44... Kc6 {[%clk 0:00:03.7]} 45. Nb3 {[%clk 0:00:05.2]} 45...
Bd4 {[%clk 0:00:04]} 46. Nc1 {[%clk 0:00:04.1]} 46... Kc5 {[%clk 0:00:04.5]} 47.
Kg2 {[%clk 0:00:04.3]} 47... Kc4 {[%clk 0:00:05.1]} 48. Ne2 {[%clk 0:00:04.5]}
48... Nc3 {[%clk 0:00:05.4]} 49. Ng1 {[%clk 0:00:04.5]} 49... Kd3 {[%clk
0:00:05.6]} 50. Nf3 {[%clk 0:00:04.4]} 50... Ne2 {[%clk 0:00:05.8]} 51. g5
{[%clk 0:00:04.2]} 51... Nxg3 {[%clk 0:00:05.2]} 52. Kxg3 {[%clk 0:00:02.9]}
52... Ke4 {[%clk 0:00:05.8]} 53. gxf6 {[%clk 0:00:02.2]} 53... gxf6 {[%clk
0:00:06.7]} 54. Nh2 {[%clk 0:00:01.9]} 54... Kf5 {[%clk 0:00:07.1]} 55. Nf1
{[%clk 0:00:02]} 55... Bc5 {[%clk 0:00:07.3]} 56. Nd2 {[%clk 0:00:02.3]} 56...
Bb4 {[%clk 0:00:07.2]} 57. Nc4 {[%clk 0:00:02.3]} 57... Be1 {[%clk 0:00:07.5]}
58. Ne3+ {[%clk 0:00:02]} 58... Kg6 {[%clk 0:00:07.3]} 59. Ng2 {[%clk
0:00:02.5]} 59... Bd2 {[%clk 0:00:07.1]} 60. Nh4+ {[%clk 0:00:02.3]} 60... Kg7
{[%clk 0:00:06.4]} 61. Kg4 {[%clk 0:00:01.9]} 61... Bc1 {[%clk 0:00:06.2]} 0-1

[Event "Early-Titled-Tuesday-Blitz-September-26-2023"]
[Site "Chess.com"]
[Date "2023.09.26"]
[Round "8"]
[White "ElenaPershina"]
[Black "Rosh1610"]
[Result "1/2-1/2"]
[WhiteElo "2327"]
[BlackElo "2465"]
[TimeControl "180+1"]
[EndTime "9:30:19 PDT"]
[Termination "Game drawn by repetition"]

1. c4 {[%clk 0:03:00.9]} 1... e5 {[%clk 0:02:58.7]} 2. g3 {[%clk 0:02:59.9]}
2... Nf6 {[%clk 0:02:58.4]} 3. Bg2 {[%clk 0:03:00.1]} 3... c6 {[%clk 0:02:57.9]}
4. Nf3 {[%clk 0:02:59.2]} 4... d6 {[%clk 0:02:57]} 5. Nc3 {[%clk 0:02:58]} 5...
g6 {[%clk 0:02:56.9]} 6. O-O {[%clk 0:02:56.8]} 6... Bg7 {[%clk 0:02:56.7]} 7.
d3 {[%clk 0:02:57]} 7... O-O {[%clk 0:02:54.8]} 8. Rb1 {[%clk 0:02:57]} 8... a5
{[%clk 0:02:53.4]} 9. a3 {[%clk 0:02:56.5]} 9... Be6 {[%clk 0:02:52.8]} 10. Bd2
{[%clk 0:02:55.8]} 10... h6 {[%clk 0:02:48.3]} 11. b4 {[%clk 0:02:55.5]} 11...
axb4 {[%clk 0:02:46.7]} 12. axb4 {[%clk 0:02:56.4]} 12... Nbd7 {[%clk
0:02:46.6]} 13. b5 {[%clk 0:02:54.7]} 13... d5 {[%clk 0:02:40.1]} 14. cxd5
{[%clk 0:02:45]} 14... cxd5 {[%clk 0:02:39.8]} 15. d4 {[%clk 0:02:44.6]} 15...
e4 {[%clk 0:02:39.1]} 16. Ne1 {[%clk 0:02:37.5]} 16... Ne8 {[%clk 0:02:37.7]}
17. Nc2 {[%clk 0:02:33.9]} 17... Nd6 {[%clk 0:02:37.6]} 18. Qc1 {[%clk
0:02:28.2]} 18... Nc4 {[%clk 0:02:35.5]} 19. Bxh6 {[%clk 0:02:25.4]} 19... Bxh6
{[%clk 0:02:34.3]} 20. Qxh6 {[%clk 0:02:25]} 20... Ndb6 {[%clk 0:02:28.5]} 21.
h4 {[%clk 0:02:13]} 21... Nd6 {[%clk 0:02:13.7]} 22. Ne3 {[%clk 0:02:04.1]}
22... Ra3 {[%clk 0:02:08.2]} 23. Rfc1 {[%clk 0:02:00.5]} 23... Qf6 {[%clk
0:01:46.9]} 24. h5 {[%clk 0:01:55.6]} 24... Rc8 {[%clk 0:01:20.5]} 25. Ncd1
{[%clk 0:01:30.4]} 25... Rxc1 {[%clk 0:01:16]} 26. Rxc1 {[%clk 0:01:31.3]} 26...
Nxb5 {[%clk 0:01:10]} 27. Rb1 {[%clk 0:01:20.8]} 27... Ra5 {[%clk 0:00:54]} 28.
hxg6 {[%clk 0:01:12.6]} 28... fxg6 {[%clk 0:00:53.3]} 29. Bh3 {[%clk 0:01:00.1]}
29... Bxh3 {[%clk 0:00:32.6]} 30. Qxh3 {[%clk 0:01:01]} 30... Nxd4 {[%clk
0:00:23.8]} 31. Nc3 {[%clk 0:00:45.8]} 31... Ra6 {[%clk 0:00:13.4]} 32. Ng4
{[%clk 0:00:39.1]} 32... Nf3+ {[%clk 0:00:11.6]} 33. exf3 {[%clk 0:00:35.5]}
33... Qxc3 {[%clk 0:00:12.2]} 34. Nh6+ {[%clk 0:00:31.8]} 34... Kg7 {[%clk
0:00:11.4]} 35. fxe4 {[%clk 0:00:29.7]} 35... dxe4 {[%clk 0:00:11.2]} 36. Rd1
{[%clk 0:00:27.3]} 36... Ra1 {[%clk 0:00:11]} 37. Rxa1 {[%clk 0:00:23.6]} 37...
Qxa1+ {[%clk 0:00:11.9]} 38. Kg2 {[%clk 0:00:23.3]} 38... e3 {[%clk 0:00:12.5]}
39. fxe3 {[%clk 0:00:21.8]} 39... Qb2+ {[%clk 0:00:12.2]} 40. Kf3 {[%clk
0:00:21.1]} 40... Qf6+ {[%clk 0:00:10.5]} 41. Kg2 {[%clk 0:00:20.2]} 41... Qc6+
{[%clk 0:00:10.7]} 42. Kf2 {[%clk 0:00:19.8]} 42... Nd5 {[%clk 0:00:10.4]} 43.
Ng4 {[%clk 0:00:18.4]} 43... Qc2+ {[%clk 0:00:09.7]} 44. Kg1 {[%clk 0:00:18.2]}
44... Qd1+ {[%clk 0:00:08.1]} 45. Kg2 {[%clk 0:00:16.9]} 45... Qe2+ {[%clk
0:00:07.7]} 46. Kg1 {[%clk 0:00:16.7]} 46... Qe1+ {[%clk 0:00:04.5]} 47. Kh2
{[%clk 0:00:15.5]} 47... Qd2+ {[%clk 0:00:02.9]} 48. Kh1 {[%clk 0:00:14.6]}
48... Qd1+ {[%clk 0:00:02.5]} 49. Kh2 {[%clk 0:00:14.9]} 49... Qc2+ {[%clk
0:00:02.5]} 50. Kh1 {[%clk 0:00:15]} 50... Qd1+ {[%clk 0:00:02.4]} 51. Kh2
{[%clk 0:00:15.4]} 51... Qe2+ {[%clk 0:00:02.7]} 52. Kh1 {[%clk 0:00:15.4]}
52... Qf3+ {[%clk 0:00:02.9]} 53. Kh2 {[%clk 0:00:15.2]} 53... Kg8 {[%clk
0:00:02.8]} 54. Nh6+ {[%clk 0:00:13.8]} 54... Kg7 {[%clk 0:00:03]} 55. Ng4
{[%clk 0:00:13.6]} 55... Qe2+ {[%clk 0:00:01.8]} 56. Kh1 {[%clk 0:00:13.4]}
56... Qe1+ {[%clk 0:00:02.4]} 57. Kh2 {[%clk 0:00:13.7]} 57... Kg8 {[%clk
0:00:02.9]} 58. Nh6+ {[%clk 0:00:13]} 58... Kh7 {[%clk 0:00:02.4]} 59. Nf5+
{[%clk 0:00:10.8]} 59... Kg8 {[%clk 0:00:02.8]} 60. Nh6+ {[%clk 0:00:10.7]}
60... Kg7 {[%clk 0:00:02.8]} 61. Ng4 {[%clk 0:00:10.4]} 1/2-1/2

[Event "Early-Titled-Tuesday-Blitz-September-26-2023"]
[Site "Chess.com"]
[Date "2023.09.26"]
[Round "8"]
[White "ShahMatKanal"]
[Black "Defenstrator"]
[Result "0-1"]
[WhiteElo "2483"]
[BlackElo "2378"]
[TimeControl "180+1"]
[EndTime "9:30:54 PDT"]
[Termination "Defenstrator won on time"]

1. e4 {[%clk 0:02:58.1]} 1... d5 {[%clk 0:02:58.1]} 2. Nc3 {[%clk 0:02:55.9]}
2... dxe4 {[%clk 0:02:56.3]} 3. Nxe4 {[%clk 0:02:50.2]} 3... Bf5 {[%clk
0:02:56.2]} 4. Ng3 {[%clk 0:02:47]} 4... Bg6 {[%clk 0:02:56.1]} 5. h4 {[%clk
0:02:44]} 5... h6 {[%clk 0:02:47.6]} 6. h5 {[%clk 0:02:43.5]} 6... Bh7 {[%clk
0:02:47.7]} 7. Bc4 {[%clk 0:02:40.6]} 7... Nc6 {[%clk 0:02:27.5]} 8. d3 {[%clk
0:02:35.7]} 8... Na5 {[%clk 0:01:45.5]} 9. Bb5+ {[%clk 0:02:30.2]} 9... c6
{[%clk 0:01:46.1]} 10. Ba4 {[%clk 0:02:28.7]} 10... b5 {[%clk 0:01:44.5]} 11.
Bb3 {[%clk 0:02:24.6]} 11... Nf6 {[%clk 0:01:30]} 12. Nf3 {[%clk 0:02:22.3]}
12... e6 {[%clk 0:01:24.8]} 13. Qe2 {[%clk 0:02:13.4]} 13... Bb4+ {[%clk
0:01:18.5]} 14. Bd2 {[%clk 0:02:06.7]} 14... Bxd2+ {[%clk 0:01:16.5]} 15. Nxd2
{[%clk 0:02:03]} 15... O-O {[%clk 0:01:11.2]} 16. Nde4 {[%clk 0:01:54]} 16...
Nxb3 {[%clk 0:01:04.6]} 17. axb3 {[%clk 0:01:54.9]} 17... Nd5 {[%clk 0:01:03.6]}
18. O-O {[%clk 0:01:37.3]} 18... Qh4 {[%clk 0:00:46.9]} 19. Qf3 {[%clk
0:01:08.6]} 19... a5 {[%clk 0:00:35.3]} 20. Ne2 {[%clk 0:01:00.1]} 20... Bf5
{[%clk 0:00:27.3]} 21. g3 {[%clk 0:00:58.6]} 21... Qg4 {[%clk 0:00:19.6]} 22.
Nd2 {[%clk 0:00:53.2]} 22... Qxf3 {[%clk 0:00:19.9]} 23. Nxf3 {[%clk 0:00:54.1]}
23... Bg4 {[%clk 0:00:20.8]} 24. Kg2 {[%clk 0:00:41]} 24... Bxh5 {[%clk
0:00:21.7]} 25. Rh1 {[%clk 0:00:41.6]} 25... Bxf3+ {[%clk 0:00:21.9]} 26. Kxf3
{[%clk 0:00:42.5]} 26... Nb4 {[%clk 0:00:22.8]} 27. Rac1 {[%clk 0:00:39.6]}
27... a4 {[%clk 0:00:23.3]} 28. bxa4 {[%clk 0:00:39.3]} 28... Rxa4 {[%clk
0:00:23.5]} 29. Nc3 {[%clk 0:00:38.4]} 29... Ra7 {[%clk 0:00:22.1]} 30. Rh4
{[%clk 0:00:37.9]} 30... Nd5 {[%clk 0:00:21.3]} 31. Ne4 {[%clk 0:00:32.8]} 31...
Ra2 {[%clk 0:00:20.3]} 32. b3 {[%clk 0:00:31.7]} 32... Rfa8 {[%clk 0:00:19.6]}
33. c4 {[%clk 0:00:17.1]} 33... Nb4 {[%clk 0:00:18.5]} 34. cxb5 {[%clk
0:00:15.5]} 34... Nxd3 {[%clk 0:00:18.8]} 35. Rd1 {[%clk 0:00:14.7]} 35... Ne5+
{[%clk 0:00:17.9]} 36. Kf4 {[%clk 0:00:15]} 36... Ng6+ {[%clk 0:00:18.3]} 37.
Ke3 {[%clk 0:00:14.7]} 37... Nxh4 {[%clk 0:00:17.6]} 38. gxh4 {[%clk 0:00:15.6]}
38... cxb5 {[%clk 0:00:17.5]} 39. Rd3 {[%clk 0:00:09.9]} 39... Rb2 {[%clk
0:00:15.1]} 40. Nc5 {[%clk 0:00:07.8]} 40... Raa2 {[%clk 0:00:15.1]} 41. f3
{[%clk 0:00:08.4]} 41... e5 {[%clk 0:00:10.1]} 42. Ke4 {[%clk 0:00:08.2]} 42...
f6 {[%clk 0:00:10]} 43. Rd8+ {[%clk 0:00:05.9]} 43... Kf7 {[%clk 0:00:09.4]} 44.
h5 {[%clk 0:00:06.3]} 44... Ke7 {[%clk 0:00:07.8]} 45. Rd7+ {[%clk 0:00:06.1]}
45... Ke8 {[%clk 0:00:07.6]} 46. Rxg7 {[%clk 0:00:04.6]} 46... Rc2 {[%clk
0:00:07]} 47. Ne6 {[%clk 0:00:03.8]} 47... Re2+ {[%clk 0:00:07.1]} 48. Kf5
{[%clk 0:00:04.1]} 48... Rf2 {[%clk 0:00:04.7]} 49. Kxf6 {[%clk 0:00:03.5]}
49... Rxf3+ {[%clk 0:00:05.1]} 50. Kxe5 {[%clk 0:00:04]} 50... Re2+ {[%clk
0:00:05.3]} 51. Kd6 {[%clk 0:00:04.4]} 51... Rd3+ {[%clk 0:00:05.4]} 52. Kc5
{[%clk 0:00:03]} 52... Rxe6 {[%clk 0:00:05.5]} 53. Rg8+ {[%clk 0:00:02.2]} 53...
Kf7 {[%clk 0:00:05.6]} 54. Rb8 {[%clk 0:00:02.1]} 54... Rg3 {[%clk 0:00:05.6]}
55. Kxb5 {[%clk 0:00:01.7]} 55... Rg5+ {[%clk 0:00:05.8]} 56. Ka4 {[%clk
0:00:01.9]} 56... Rxh5 {[%clk 0:00:06.1]} 57. b4 {[%clk 0:00:02.4]} 57... Re4
{[%clk 0:00:06.4]} 58. Ka3 {[%clk 0:00:01.5]} 58... Rh3+ {[%clk 0:00:06.6]} 59.
Ka4 {[%clk 0:00:01.8]} 59... Rhh4 {[%clk 0:00:06.6]} 60. Ka5 {[%clk 0:00:02.2]}
60... h5 {[%clk 0:00:06.1]} 61. b5 {[%clk 0:00:02.1]} 61... Ra4+ {[%clk
0:00:06.5]} 62. Kb6 {[%clk 0:00:02.6]} 62... Ke7 {[%clk 0:00:07.1]} 63. Rb7+
{[%clk 0:00:02.5]} 63... Kd6 {[%clk 0:00:07.2]} 64. Rh7 {[%clk 0:00:03.4]} 64...
Rh1 {[%clk 0:00:06.3]} 65. Rh6+ {[%clk 0:00:03.7]} 65... Kd5 {[%clk 0:00:06.5]}
66. Kb7 {[%clk 0:00:02.7]} 66... Rb4 {[%clk 0:00:06.5]} 67. b6 {[%clk
0:00:03.2]} 67... h4 {[%clk 0:00:07]} 68. Rh5+ {[%clk 0:00:03.2]} 68... Kc4
{[%clk 0:00:06.7]} 69. Kc7 {[%clk 0:00:02.9]} 69... h3 {[%clk 0:00:03.6]} 70.
Rh4+ {[%clk 0:00:02.8]} 70... Kc3 {[%clk 0:00:03.6]} 71. Rxb4 {[%clk 0:00:01.6]}
71... h2 {[%clk 0:00:04.1]} 72. b7 {[%clk 0:00:02.5]} 72... Rc1 {[%clk
0:00:03.4]} 73. b8=Q {[%clk 0:00:02]} 73... h1=Q {[%clk 0:00:04.2]} 0-1